bitfinex/quotes_ETHUSD_20230118
["timestamp","ask_amount","ask_price","bid_price","bid_amount"]
[1674030992283,29.97399419,1577.6,1577.5,0.00168488]
[1674030992649,30.3076701,1577.6,1577.5,0.00168488]
[1674030992860,33.64666282,1577.6,1577.5,0.00168488]
[1674030993070,1.00695097,1577.4,1577.3,0.09186389]
[1674030993350,31.58551696,1577.4,1577.3,0.09186389]
[1674030993490,33.99286662,1577.4,1577.3,0.09186389]
[1674030993705,32.71128015,1577.4,1577.3,0.09186389]
[1674030994555,30.95052537,1577.4,1577.3,0.09186389]
[1674030995657,29.9435744,1577.4,1577.3,0.09186389]
[1674030995985,33.35406918,1577.4,1577.3,0.09186389]
[1674030996178,34.63480281,1577.4,1577.3,0.09186389]
[1674030996540,33.64512994,1577.4,1577.3,0.09186389]
[1674030996959,33.64512994,1577.4,1577.3,0.04186389]
[1674030997616,34.63355864,1577.4,1577.3,0.04186389]
[1674030998577,33.31399481,1577.4,1577.3,0.04186389]
[1674031000349,33.31062329,1577.4,1577.3,0.04186389]
[1674031003745,33.96891594,1577.4,1577.3,0.04186389]
[1674031005375,32.98048724,1577.4,1577.3,0.04186389]
[1674031006159,25.37957881,1577.4,1577.3,0.04186389]
[1674031006690,26.25794071,1577.4,1577.3,0.04186389]
[1674031006872,28.54836592,1577.4,1577.2,0.07304889]
[1674031007092,19.06591626,1577.3,1577.2,0.07304889]
[1674031007328,40.38784128,1577.3,1577.2,0.07304889]
[1674031007488,43.16044778,1577.3,1577.2,0.07304889]
[1674031007680,41.25458301,1577.3,1577.2,0.07304889]
[1674031008046,1.0102412,1577.0,1576.9,0.08884436]
[1674031008398,21.4646912,1577.0,1576.9,0.08884436]
[1674031008540,20.05848153,1577.0,1576.9,0.08884436]
[1674031008887,0.02903153,1577.0,1576.9,2.14584436]
[1674031009042,0.0042412,1577.0,1576.9,0.08884436]
[1674031009510,0.0042412,1577.0,1576.9,2.14584436]
[1674031009685,0.0042412,1577.0,1576.9,0.08884436]
[1674031013263,6.3453912,1577.0,1576.9,0.08884436]
[1674031013472,6.37018153,1577.0,1576.9,0.08884436]
[1674031013670,0.02903153,1577.0,1576.9,0.08884436]
[1674031013882,0.0042412,1577.0,1576.9,0.08884436]
[1674031022974,0.0042412,1577.0,1576.9,1.13984436]
[1674031023176,0.0042412,1577.0,1576.9,0.21171323]
[1674031023387,0.0042412,1577.0,1576.9,6.43039436]
[1674031023592,0.0042412,1577.0,1576.9,6.49639436]
[1674031023838,0.0042412,1577.0,1576.9,14.26794436]
[1674031024027,0.0042412,1577.0,1576.9,27.22611843]
[1674031024254,0.0042412,1577.0,1576.9,23.72611843]
[1674031025012,0.0042412,1577.0,1576.9,27.96783471]
[1674031029718,0.00127305,1577.0,1576.9,27.96783471]
[1674031029892,0.00127305,1577.0,1576.9,31.83148097]
[1674031030108,0.00127305,1577.0,1576.9,31.56148097]
[1674031030370,0.00127305,1577.0,1576.9,39.87168097]
[1674031032202,19.04283033,1577.5,1576.9,39.87168097]
[1674031032471,19.04283033,1577.5,1577.1,1.432]
[1674031033861,0.02479033,1577.5,1577.2,3.11662407]
[1674031034033,0.02479033,1577.6,1577.4,1.444]
[1674031034203,12.70221033,1577.7,1577.4,1.444]
[1674031038302,0.02479033,1577.7,1577.4,12.46811807]
[1674031038566,20.99683453,1577.8,1577.4,12.53411807]
[1674031044311,0.12241453,1577.8,1577.5,1.437]
[1674031044495,0.0976242,1577.8,1577.7,1.444]
[1674031046779,0.0976242,1577.8,1577.5,14.18792]
[1674031046928,0.0976242,1577.8,1577.6,1.418792]
[1674031049777,0.0976242,1577.8,1577.6,1.408792]
[1674031054031,0.0976242,1577.8,1577.7,14.11968]
[1674031054217,0.0976242,1577.8,1577.7,2.123]
[1674031054398,0.0976242,1577.8,1577.7,2.057]
[1674031055020,0.0976242,1577.8,1577.6,9.52128407]
[1674031055233,0.0976242,1577.8,1577.6,12.01772848]
[1674031056284,0.0976242,1577.8,1577.7,10.89196407]
[1674031056499,0.0976242,1577.8,1577.7,17.29630407]
[1674031056722,0.0976242,1577.8,1577.7,23.63464407]
[1674031059476,0.0976242,1577.8,1577.7,23.86464407]
[1674031059702,0.0976242,1577.8,1577.7,34.57475292]
[1674031060326,0.0976242,1577.8,1577.7,14.47834]
[1674031062849,0.0976242,1577.8,1577.7,8.14]
[1674031065731,0.0976242,1577.8,1577.7,14.47834]
[1674031066095,0.0976242,1577.8,1577.7,20.81668]
[1674031071760,0.0976242,1577.8,1577.7,31.70264407]
[1674031072082,0.0976242,1577.8,1577.7,35.98639292]
[1674031074320,0.09373434,1577.8,1577.7,35.98639292]
[1674031075662,0.09373434,1577.8,1577.7,37.41594245]
[1674031075919,0.09373434,1577.8,1577.7,43.91794245]
[1674031076484,0.09373434,1577.8,1577.7,54.41054245]
[1674031077075,0.09373434,1577.8,1577.7,50.91054245]
[1674031079946,0.09373434,1577.8,1577.7,49.47954245]
[1674031080106,0.09373434,1577.8,1577.7,48.04654245]
[1674031083246,0.09373434,1577.8,1577.7,49.49054245]
[1674031087451,0.09373434,1577.8,1577.7,50.93454245]
[1674031087665,0.09373434,1577.8,1577.7,54.43454245]
[1674031087989,0.09373434,1577.8,1577.7,57.95930717]
[1674031087990,0.05070723,1577.8,1577.7,57.95930717]
[1674031088225,0.0976242,1578.1,1577.7,59.28680443]
[1674031088555,0.0976242,1578.1,1578.0,21.89039]
[1674031088874,0.0976242,1578.1,1578.0,25.3015636]
[1674031089027,0.0976242,1578.1,1578.0,28.35658112]
[1674031089373,0.0976242,1578.1,1578.0,26.8575636]
[1674031090393,0.0976242,1578.1,1578.0,25.4225636]
[1674031090713,0.0976242,1578.1,1578.0,29.56264296]
[1674031091591,0.0976242,1578.1,1578.0,29.56734317]
[1674031092342,0.0976242,1578.1,1578.0,29.56534317]
[1674031092508,0.0976242,1578.1,1578.0,29.56734317]
[1674031100169,0.0976242,1578.1,1578.0,29.56534317]
[1674031100378,0.0976242,1578.1,1578.0,29.56734317]
[1674031100621,0.0976242,1578.1,1578.0,25.4225636]
[1674031108625,0.0476242,1578.1,1578.0,25.4225636]
[1674031115695,0.0476242,1578.1,1578.0,25.47758186]
[1674031116259,0.0476242,1578.1,1578.0,25.4225636]
[1674031116488,0.0476242,1578.1,1578.0,25.47758202]
[1674031116723,0.0476242,1578.1,1578.0,29.54583969]
[1674031117940,0.0476242,1578.1,1578.0,29.54583999]
[1674031118203,0.0476242,1578.1,1578.0,29.49082127]
[1674031123335,0.0476242,1578.1,1578.0,29.54584102]
[1674031125290,0.0476242,1578.1,1578.0,29.95886907]
[1674031125461,0.0476242,1578.1,1578.0,29.54584102]
[1674031126297,0.0476242,1578.1,1578.0,29.95892572]
[1674031126511,0.0476242,1578.1,1578.0,29.54584102]
[1674031127131,0.0476242,1578.1,1578.0,29.9591564]
[1674031129909,0.0476242,1578.1,1578.0,29.95918118]
[1674031131063,0.0476242,1578.1,1578.0,29.54584102]
[1674031131958,0.0476242,1578.1,1578.0,12.57332335]
[1674031132588,0.0476242,1578.1,1578.0,12.98665328]
[1674031133050,0.0476242,1578.1,1578.0,12.5183036]
[1674031135801,0.0476242,1578.1,1578.0,3.06454953]
[1674031135950,1.0536242,1578.1,1577.9,6.40167953]
[1674031136492,1.34557769,1578.1,1577.9,6.40167953]
[1674031136702,0.0476242,1578.1,1577.9,6.40167953]
[1674031141603,7.04248493,1578.1,1577.9,0.06178715]
[1674031141763,7.04248493,1578.1,1577.9,0.002]
[1674031141764,1.208,1578.0,1577.9,0.002]
[1674031142130,2.03552753,1578.0,1577.9,0.002]
[1674031143768,9.03056826,1578.0,1577.9,0.002]
[1674031143983,10.14473876,1578.0,1577.6,9.40212715]
[1674031144190,9.05535859,1578.0,1577.6,12.51875122]
[1674031144396,9.05535859,1578.0,1577.6,3.06378715]
[1674031144397,1.198,1577.8,1577.6,3.06378715]
[1674031144758,1.198,1577.8,1577.6,3.0]
[1674031146806,1.198,1577.8,1577.5,14.79455676]
[1674031147430,1.198,1577.8,1577.5,14.38132715]
[1674031148326,1.95404903,1577.8,1577.5,14.38132715]
[1674031148535,1.95404903,1577.8,1577.5,14.37932715]
[1674031148754,1.95404903,1577.8,1577.5,14.38132715]
[1674031149357,0.02479033,1577.9,1577.7,6.33834]
[1674031149568,9.29939033,1578.0,1577.7,12.74046715]
[1674031150214,8.09139033,1578.0,1577.7,15.85709122]
[1674031150376,8.09139033,1578.0,1577.7,22.19543122]
[1674031151642,0.02479033,1578.0,1577.8,3.11662407]
[1674031151903,0.0476242,1578.1,1577.9,3.42828648]
[1674031152216,0.0476242,1578.1,1578.0,6.33713]
[1674031152542,0.0476242,1578.1,1578.0,12.73804715]
[1674031153358,0.0476242,1578.1,1578.0,19.07517715]
[1674031154372,0.0476242,1578.1,1578.0,21.95923851]
[1674031154787,0.0476242,1578.1,1578.0,26.28286258]
[1674031155045,0.0476242,1578.1,1578.0,29.28286258]
[1674031155368,0.0476242,1578.1,1578.0,29.51286258]
[1674031155985,0.0476242,1578.1,1578.0,29.51756279]
[1674031156381,0.0476242,1578.1,1578.0,29.92305364]
[1674031157158,0.0476242,1578.1,1578.0,29.92314405]
[1674031158046,0.0476242,1578.1,1578.0,29.51756279]
[1674031159982,0.0476242,1578.1,1578.0,28.31056279]
[1674031161365,0.0476242,1578.1,1578.0,31.79576127]
[1674031161886,0.0476242,1578.1,1578.0,32.32583905]
[1674031163887,0.04465283,1578.1,1578.0,32.32583905]
[1674031165511,0.04465283,1578.1,1578.0,31.66207437]
[1674031165722,0.04465283,1578.1,1578.0,31.25664057]
[1674031166146,0.04465283,1578.1,1578.0,30.72656279]
[1674031172066,0.04465283,1578.1,1578.0,31.13146324]
[1674031173848,0.04465283,1578.1,1578.0,31.1282325]
[1674031175160,0.04465283,1578.1,1578.0,30.72333205]
[1674031177439,0.04465283,1578.1,1578.0,29.51533205]
[1674031177636,0.04465283,1578.1,1578.0,29.45783205]
[1674031183963,0.04465283,1578.1,1578.0,29.22783205]
[1674031184266,0.04465283,1578.1,1578.0,25.13577069]
[1674031185317,0.04465283,1578.1,1578.0,25.13377069]
[1674031185528,1.05065283,1578.1,1578.0,9.45681048]
[1674031185761,1.05065283,1578.1,1578.0,0.06378715]
[1674031186033,1.05065283,1578.1,1577.9,12.73826715]
[1674031186206,1.27641811,1578.1,1577.9,15.85489122]
[1674031186365,1.27641811,1578.1,1577.9,6.40093715]
[1674031186805,1.27641811,1578.1,1577.9,0.06378715]
[1674031187009,6.33713,1578.0,1577.5,6.40286715]
[1674031187238,12.69905033,1578.0,1577.5,0.06378715]
[1674031187452,1.26990503,1577.9,1577.5,6.33913]
[1674031187664,1.26990503,1577.9,1577.5,6.40291715]
[1674031190103,1.204,1577.6,1577.5,6.40291715]
[1674031191769,1.204,1577.6,1577.5,0.06378715]
[1674031192121,1.204,1577.6,1577.5,6.33914]
[1674031192275,1.204,1577.6,1577.5,6.40292715]
[1674031193011,1.204,1577.6,1577.5,12.74206715]
[1674031193362,19.11459536,1577.9,1577.5,12.74206715]
[1674031193589,0.80164497,1577.8,1577.5,12.74206715]
[1674031194914,2.24564497,1577.8,1577.5,12.74206715]
[1674031198920,2.24564497,1577.8,1577.5,12.74006715]
[1674031198921,2.24764497,1577.8,1577.5,12.74006715]
[1674031199280,2.24564497,1577.8,1577.5,12.74206715]
[1674031202285,2.24218856,1577.8,1577.5,12.74206715]
[1674031202931,0.79818856,1577.8,1577.5,12.74206715]
[1674031203705,15.89135033,1577.9,1577.5,12.74206715]
[1674031203893,8.10979033,1577.9,1577.5,22.19783122]
[1674031206393,9.55379033,1577.9,1577.5,12.74206715]
[1674031206623,1.433,1577.8,1577.5,0.06378715]
[1674031206828,0.1433,1577.7,1577.4,6.40307715]
[1674031208019,1.444,1577.6,1577.4,0.06378715]
[1674031208235,1.444,1577.5,1577.3,0.06378715]
[1674031208450,1.444,1577.4,1577.2,0.15965363]
[1674031208674,1.444,1577.4,1577.2,0.09586648]
[1674031208675,1.5884,1577.4,1577.2,0.09586648]
[1674031209016,1.444,1577.4,1577.2,6.43619648]
[1674031209227,0.02479033,1577.5,1577.2,12.84032363]
[1674031209228,1.433,1577.5,1577.2,12.84032363]
[1674031210224,1.433,1577.5,1577.2,15.9569477]
[1674031210384,9.78719033,1577.6,1577.2,22.2972877]
[1674031210599,9.78719033,1577.6,1577.2,25.16996616]
[1674031210958,9.78719033,1577.6,1577.3,1.0]
[1674031211300,9.78719033,1577.6,1577.4,6.33954]
[1674031211513,1.46379033,1577.6,1577.4,6.40332715]
[1674031211668,1.439,1577.6,1577.4,6.40332715]
[1674031212010,17.61696033,1577.8,1577.4,12.74286715]
[1674031212223,1.46879033,1577.8,1577.4,12.74286715]
[1674031212434,1.444,1577.8,1577.4,12.74286715]
[1674031212875,7.782,1577.8,1577.4,12.74286715]
[1674031213046,7.80679033,1577.8,1577.4,12.74286715]
[1674031214923,1.433,1577.7,1577.4,12.74286715]
[1674031216504,1.433,1577.7,1577.4,14.65111987]
[1674031218044,1.433,1577.7,1577.4,8.31157987]
[1674031218356,1.433,1577.7,1577.4,6.40332715]
[1674031219758,7.77142,1577.7,1577.4,0.06378715]
[1674031219972,7.79621033,1577.7,1577.3,6.40344715]
[1674031220286,7.79621033,1577.7,1577.3,12.74316715]
[1674031220703,7.79621033,1577.7,1577.3,0.06378715]
[1674031220942,2.22062103,1577.6,1577.2,14.57765363]
[1674031221244,8.55956103,1577.6,1577.2,14.57765363]
[1674031221388,8.58435136,1577.6,1577.2,13.34515963]
[1674031222904,8.58435136,1577.6,1577.2,19.68549963]
[1674031223065,0.85843514,1577.5,1577.2,19.68549963]
[1674031223719,0.85843514,1577.5,1577.2,12.74412715]
[1674031224287,0.85843514,1577.5,1577.2,0.06378715]
[1674031224430,0.85843514,1577.5,1577.1,25.4578899]
[1674031224647,0.85843514,1577.5,1577.2,0.05504239]
[1674031224858,0.08584351,1577.4,1577.2,0.05504239]
[1674031225074,0.08584351,1577.4,1577.2,6.39535239]
[1674031225409,0.85843514,1577.5,1577.3,0.05504225]
[1674031233164,1.444,1577.4,1577.2,0.06378715]
[1674031233414,1.444,1577.4,1577.1,14.70434871]
[1674031233632,1.444,1577.4,1577.2,0.05504506]
[1674031233785,2.65365845,1577.4,1577.2,0.05504506]
[1674031234739,2.65365845,1577.4,1577.2,6.39535506]
[1674031234944,1.444,1577.4,1577.2,6.40409715]
[1674031235207,9.30029033,1577.6,1577.3,7.44598233]
[1674031235422,9.30029033,1577.6,1577.3,13.79466715]
[1674031236518,7.85629033,1577.6,1577.4,0.05503875]
[1674031236729,7.85629033,1577.6,1577.4,6.39449875]
[1674031237015,7.85629033,1577.6,1577.4,6.40324715]
[1674031237306,0.02479033,1577.6,1577.4,6.40324715]
[1674031237656,1.433,1577.7,1577.4,6.40324715]
[1674031238214,1.433,1577.7,1577.4,12.74278715]
[1674031240031,9.38819033,1577.8,1577.4,12.74278715]
[1674031240369,0.93881903,1577.7,1577.4,12.74278715]
[1674031242254,0.93881903,1577.7,1577.4,12.73933807]
[1674031243102,7.94419033,1577.8,1577.4,19.74264275]
[1674031243407,7.94419033,1577.8,1577.5,6.39396626]
[1674031243578,7.94419033,1577.8,1577.5,6.40271715]
[1674031246765,7.94419033,1577.8,1577.5,13.40562183]
[1674031247091,7.94419033,1577.8,1577.6,0.05503366]
[1674031247478,7.94419033,1577.8,1577.6,6.39373366]
[1674031247673,7.94419033,1577.8,1577.6,6.40248715]
[1674031247890,7.94419033,1577.8,1577.6,8.37691933]
[1674031248122,0.02479033,1577.8,1577.6,8.37691933]
[1674031248294,14.80152106,1578.0,1577.6,8.37691933]
[1674031248513,14.80152106,1578.0,1577.6,6.40248715]
[1674031249589,14.14361033,1578.0,1577.6,6.40248715]
[1674031250756,0.02479033,1578.0,1577.6,6.40248715]
[1674031250927,8.86445389,1578.1,1577.7,0.05502952]
[1674031251142,8.20654316,1578.1,1577.8,12.6757]
[1674031251368,8.20654316,1578.1,1577.8,12.73948715]
[1674031251542,8.20654316,1578.1,1577.8,19.07741715]
[1674031251768,8.20654316,1578.1,1577.8,21.05153533]
[1674031259234,8.20654316,1578.1,1577.8,19.07741715]
[1674031262216,14.54329316,1578.1,1577.8,0.06378715]
[1674031262549,1.444,1577.9,1577.7,7.63948715]
[1674031262720,1.444,1577.9,1577.7,0.06378715]
[1674031262934,1.444,1577.9,1577.6,12.74122715]
[1674031263185,2.22460403,1577.9,1577.6,12.74122715]
[1674031263494,0.78060403,1577.9,1577.6,12.74122715]
[1674031264976,0.78060403,1577.9,1577.6,6.40248715]
[1674031265864,0.78060403,1577.9,1577.6,6.39927024]
[1674031267287,2.22460403,1577.9,1577.6,6.39927024]
[1674031267496,0.2224604,1577.8,1577.6,6.39927024]
[1674031268285,0.2224604,1577.8,1577.6,0.06378715]
[1674031268548,0.2224604,1577.8,1577.5,24.86424715]
[1674031274226,8.58694436,1577.9,1577.5,24.86424715]
[1674031274445,8.58694436,1577.9,1577.5,31.20338715]
[1674031275745,1.435,1577.8,1577.5,0.06378715]
[1674031275997,1.435,1577.8,1577.4,7.1397854]
[1674031276204,0.1435,1577.7,1577.4,7.1397854]
[1674031278582,0.1435,1577.7,1577.4,0.8005254]
[1674031278838,6.48189,1577.7,1577.4,0.73673825]
[1674031279049,6.50668033,1577.7,1577.4,0.73673825]
[1674031282572,1.444,1577.6,1577.4,0.73673825]
[1674031282808,0.1444,1577.5,1577.4,0.73673825]
[1674031283439,2.5944,1577.5,1577.4,0.73673825]
[1674031285469,8.93354,1577.5,1577.4,0.73673825]
[1674031285682,8.95833033,1577.5,1577.4,0.73673825]
[1674031287584,15.29747033,1577.5,1577.4,0.73673825]
[1674031287802,21.63661033,1577.5,1577.4,0.73673825]
[1674031288847,21.63661033,1577.5,1577.4,0.73431908]
[1674031289039,24.7532344,1577.5,1577.4,0.73431908]
[1674031293150,26.1972344,1577.5,1577.4,0.73431908]
[1674031293473,24.7532344,1577.5,1577.4,0.73431908]
[1674031294798,24.7532344,1577.5,1577.4,1.03283148]
[1674031306456,15.29747033,1577.5,1577.4,1.03283148]
[1674031309545,8.95833033,1577.5,1577.4,1.03283148]
[1674031309767,7.80793033,1577.5,1577.4,1.03283148]
[1674031313291,6.36393033,1577.5,1577.4,1.03283148]
[1674031313850,0.02479033,1577.5,1577.4,1.03283148]
[1674031314059,6.48219,1577.7,1577.5,0.00375982]
[1674031314060,0.02479033,1577.7,1577.5,0.00375982]
[1674031314233,7.02085106,1577.8,1577.5,0.00375982]
[1674031314448,8.30834062,1577.8,1577.5,0.00375982]
[1674031314670,9.53545371,1577.8,1577.5,0.00375982]
[1674031315116,8.30834062,1577.8,1577.5,0.00375982]
[1674031319221,9.715e-05,1577.5,1577.4,7.13764623]
[1674031321114,9.715e-05,1577.5,1577.4,0.79810623]
[1674031321287,9.715e-05,1577.5,1577.4,0.73431908]
[1674031323536,1.00609715,1577.5,1577.4,0.73431908]
[1674031323693,0.7370799,1577.5,1577.4,0.73431908]
[1674031325607,7.0762199,1577.5,1577.4,0.73431908]
[1674031325811,7.10101023,1577.5,1577.4,0.73431908]
[1674031326144,13.44015023,1577.5,1577.4,0.73431908]
[1674031331284,0.02488748,1577.5,1577.4,0.73431908]
[1674031331495,9.715e-05,1577.5,1577.4,0.73431908]
[1674031333805,9.715e-05,1577.5,1577.4,1.73431908]
[1674031334017,9.715e-05,1577.5,1577.4,8.07385908]
[1674031334265,9.715e-05,1577.5,1577.4,7.13764623]
[1674031334482,9.715e-05,1577.5,1577.4,9.16049947]
[1674031335702,9.715e-05,1577.5,1577.4,0.79810623]
[1674031335951,9.715e-05,1577.5,1577.4,0.73431908]
[1674031338624,7.34523715,1577.5,1577.4,0.73431908]
[1674031338888,21.49230748,1577.5,1577.4,0.73431908]
[1674031339504,21.49230748,1577.5,1577.2,18.71998715]
[1674031339505,23.24153519,1577.5,1577.2,18.71998715]
[1674031339722,22.15012106,1577.5,1577.2,10.50868715]
[1674031339887,1.74906001,1577.4,1577.2,10.50868715]
[1674031340119,12.67988,1577.3,1577.2,10.50868715]
[1674031340362,12.70467033,1577.3,1577.2,0.06378715]
[1674031340694,12.70467033,1577.3,1577.1,0.08906688]
[1674031340833,1.27046703,1577.2,1577.1,0.08906688]
[1674031341165,7.61080703,1577.2,1577.1,0.08906688]
[1674031341526,7.63559736,1577.2,1577.1,0.08906688]
[1674031343839,6.36513033,1577.2,1577.1,0.08906688]
[1674031348234,0.02479033,1577.2,1577.1,0.08906688]
[1674031348446,12.70467033,1577.3,1577.1,0.08906688]
[1674031348766,6.36473033,1577.3,1577.1,0.08906688]
[1674031351866,12.70485033,1577.3,1577.1,0.08906688]
[1674031354602,14.14685033,1577.3,1577.1,0.08906688]
[1674031354814,1.444,1577.2,1577.1,0.08906688]
[1674031355029,20.46502,1577.2,1577.1,0.08906688]
[1674031355361,20.48981033,1577.2,1577.1,0.08906688]
[1674031358503,14.14947033,1577.2,1577.1,0.08906688]
[1674031359153,0.02479033,1577.2,1577.1,0.08906688]
[1674031359402,14.14889033,1577.3,1577.1,0.08906688]
[1674031359779,7.80873033,1577.3,1577.1,0.08906688]
[1674031363417,6.36473033,1577.3,1577.1,0.08906688]
[1674031365338,12.70485033,1577.3,1577.1,0.08906688]
[1674031367614,6.36473033,1577.3,1577.1,0.08906688]
[1674031369139,6.36155354,1577.3,1577.1,0.08906688]
[1674031376294,0.02479033,1577.3,1577.1,0.19797357]
[1674031376465,15.68085033,1577.4,1577.1,0.19797357]
[1674031376677,14.23685033,1577.4,1577.1,0.19797357]
[1674031382094,14.23685033,1577.4,1577.1,1.19797357]
[1674031382576,14.23685033,1577.4,1577.1,0.19797357]
[1674031386081,14.23685033,1577.4,1577.1,1.19797357]
[1674031386564,14.23685033,1577.4,1577.1,0.19797357]
[1674031387873,14.23685033,1577.4,1577.1,1.19797357]
[1674031388173,14.23685033,1577.4,1577.1,0.19797357]
[1674031388604,21.23430106,1577.4,1577.1,0.08906688]
[1674031388755,30.0328844,1577.4,1577.1,0.08906688]
[1674031388972,26.91626033,1577.4,1577.1,0.08906688]
[1674031389334,20.57639033,1577.4,1577.1,0.08906688]
[1674031390882,26.91626033,1577.4,1577.1,0.08906688]
[1674031393638,27.57417106,1577.4,1577.1,0.08906688]
[1674031394085,28.80680782,1577.4,1577.1,0.08906688]
[1674031394305,1.75597817,1577.3,1577.1,0.08634376]
[1674031394491,19.02102,1577.2,1577.1,0.08634376]
[1674031394699,19.04581033,1577.2,1577.1,0.08634376]
[1674031403348,20.48081033,1577.2,1577.1,0.08634376]
[1674031404828,14.14047033,1577.2,1577.1,0.08634376]
[1674031405142,6.36513033,1577.2,1577.1,0.08634376]
[1674031405962,0.02479033,1577.2,1577.1,0.08634376]
[1674031406169,7.80876033,1577.3,1577.1,0.08634376]
[1674031406381,6.36476033,1577.3,1577.1,0.08634376]
[1674031407634,0.02479033,1577.3,1577.1,0.08634376]
[1674031407842,22.02036033,1577.4,1577.1,0.08634376]
[1674031408250,22.01712058,1577.4,1577.1,0.08634376]
[1674031409203,30.0016274,1577.4,1577.1,0.08634376]
[1674031409413,31.23447928,1577.4,1577.1,0.08634376]
[1674031410337,30.24761319,1577.4,1577.1,0.08634376]
[1674031411173,30.24739241,1577.4,1577.1,0.08634376]
[1674031411383,29.01476131,1577.4,1577.1,0.08634376]
[1674031412546,28.35685058,1577.4,1577.1,0.08634376]
[1674031412968,28.12285058,1577.4,1577.1,0.08634376]
[1674031414244,21.78312058,1577.4,1577.1,0.08634376]
[1674031414648,28.12285058,1577.4,1577.1,0.08634376]
[1674031415204,13.89037,1577.3,1577.1,0.08634376]
[1674031415542,20.25548033,1577.3,1577.1,0.08634376]
[1674031419861,1.23479033,1577.3,1577.1,0.08634376]
[1674031420180,14.23341058,1577.4,1577.1,0.08634376]
[1674031423330,15.44141058,1577.4,1577.1,0.08634376]
[1674031423548,16.09932131,1577.4,1577.1,0.08634376]
[1674031423955,22.43888131,1577.4,1577.1,0.08634376]
[1674031426825,1.21,1577.3,1577.1,0.08634376]
[1674031426990,6.34034,1577.2,1577.1,0.08634376]
[1674031427204,6.36513033,1577.2,1577.1,0.08634376]
[1674031428710,12.70547033,1577.2,1577.1,0.08634376]
[1674031429403,12.70547033,1577.2,1577.1,0.08304319]
[1674031432184,0.02479033,1577.2,1577.1,0.08304319]
[1674031432395,2.30922584,1577.3,1577.1,0.08304319]
[1674031433436,1.09922584,1577.3,1577.1,0.08304319]
[1674031436356,1.09922584,1577.3,1577.1,6.42376319]
[1674031436689,1.09922584,1577.3,1577.1,23.28132143]
[1674031436842,1.09922584,1577.3,1577.2,1.99564702]
[1674031437162,1.09922584,1577.3,1577.2,29.77918423]
[1674031437315,1.09922584,1577.3,1577.2,31.57661952]
[1674031437529,1.09922584,1577.3,1577.2,32.24092252]
[1674031437851,1.09922584,1577.3,1577.2,31.57661952]
[1674031438286,1.09922584,1577.3,1577.2,31.80661952]
[1674031439201,1.09922584,1577.3,1577.2,30.47912226]
[1674031442692,1.09922584,1577.3,1577.2,33.47912226]
[1674031445024,1.09922584,1577.3,1577.2,14.45810226]
[1674031445403,1.09922584,1577.3,1577.2,33.47912226]
[1674031446985,1.09922584,1577.3,1577.2,33.48382159]
[1674031449392,1.09922584,1577.3,1577.2,33.48182159]
[1674031449606,1.09922584,1577.3,1577.2,33.48382159]
[1674031454156,1.09922584,1577.3,1577.2,33.07767071]
[1674031454808,1.09701739,1577.3,1577.2,33.07767071]
[1674031457755,0.65791073,1577.6,1577.3,1.0]
[1674031457904,0.65791073,1577.6,1577.5,2.41]
[1674031458109,0.65791073,1577.6,1577.5,27.54404407]
[1674031458316,0.65791073,1577.6,1577.5,27.60783122]
[1674031460305,0.65791073,1577.6,1577.5,27.83783122]
[1674031468029,0.65791073,1577.6,1577.5,25.19783122]
[1674031468176,0.65791073,1577.6,1577.5,28.48176834]
[1674031475269,0.65791073,1577.6,1577.5,25.19783122]
[1674031476288,0.65791073,1577.6,1577.5,12.74006715]
[1674031476503,0.65791073,1577.6,1577.5,12.74206715]
[1674031476966,0.65791073,1577.6,1577.5,12.74006715]
[1674031477121,0.65791073,1577.6,1577.5,12.74206715]
[1674031479230,0.65399947,1577.6,1577.5,12.74206715]
[1674031485420,0.65399947,1577.6,1577.5,19.08120715]
[1674031489571,0.65399947,1577.6,1577.5,20.49662023]
[1674031492549,0.65399947,1577.6,1577.5,19.08120715]
[1674031495069,0.65399947,1577.6,1577.5,19.74339292]
[1674031497038,0.65399947,1577.6,1577.5,22.86001699]
[1674031497996,0.65399947,1577.6,1577.5,23.85556039]
[1674031498581,0.65399947,1577.6,1577.5,23.24614]
[1674031498791,0.65399947,1577.6,1577.5,26.38151104]
[1674031499793,0.65399947,1577.6,1577.5,29.71260392]
[1674031499949,0.65399947,1577.6,1577.5,30.38626278]
[1674031500625,0.65399947,1577.6,1577.5,28.56320226]
[1674031502247,0.65005777,1577.6,1577.5,28.56320226]
[1674031503303,0.65005777,1577.6,1577.5,29.77320226]
[1674031506032,0.65005777,1577.6,1577.5,30.76971219]
[1674031506508,0.65005777,1577.6,1577.5,29.55971219]
[1674031507061,0.65005777,1577.6,1577.5,29.32971219]
[1674031507209,0.65005777,1577.6,1577.5,25.86220867]
[1674031512150,0.65005777,1577.6,1577.5,26.19434115]
[1674031517636,0.65005777,1577.6,1577.5,27.52302106]
[1674031518305,0.65005777,1577.6,1577.5,27.52291933]
[1674031518512,0.65005777,1577.6,1577.5,26.19423942]
[1674031518661,0.65005777,1577.6,1577.5,32.14250229]
[1674031518876,0.65005777,1577.6,1577.5,30.81382238]
[1674031519628,0.65005777,1577.6,1577.5,32.14250229]
[1674031520140,0.65005777,1577.6,1577.5,31.14609409]
[1674031522664,0.65005777,1577.6,1577.5,31.37609409]
[1674031523599,0.65005777,1577.6,1577.5,32.37260822]
[1674031524124,0.65005777,1577.6,1577.5,31.37609409]
[1674031525795,0.6465959,1577.6,1577.5,31.37609409]
[1674031526130,0.6465959,1577.6,1577.5,32.37281012]
[1674031526437,0.6465959,1577.6,1577.5,32.37283008]
[1674031527378,0.6465959,1577.6,1577.5,31.04414986]
[1674031527753,0.6465959,1577.6,1577.5,32.37282977]
[1674031528959,0.6465959,1577.6,1577.5,32.37295147]
[1674031531063,0.6465959,1577.6,1577.5,31.37609409]
[1674031531277,0.6465959,1577.6,1577.5,32.37303149]
[1674031531635,0.6465959,1577.6,1577.5,31.37609409]
[1674031532525,0.6465959,1577.6,1577.5,32.37314777]
[1674031532947,0.6465959,1577.6,1577.5,32.61735857]
[1674031533607,0.6465959,1577.6,1577.5,31.62030489]
[1674031537727,0.6465959,1577.6,1577.5,26.77072193]
[1674031537944,0.6465959,1577.6,1577.5,26.43953571]
[1674031538186,0.6465959,1577.6,1577.5,27.10452462]
[1674031539052,0.6465959,1577.6,1577.5,26.43953571]
[1674031542408,0.6465959,1577.6,1577.5,27.1043978]
[1674031545122,0.6465959,1577.6,1577.5,27.10438631]
[1674031545926,0.6465959,1577.6,1577.5,26.43953571]
[1674031547652,8.23459033,1577.9,1577.5,26.43953571]
[1674031547918,2.02645903,1577.8,1577.6,0.71985694]
[1674031548192,2.02645903,1577.8,1577.7,6.33834]
[1674031548358,2.02645903,1577.8,1577.7,6.45715783]
[1674031548562,1.203,1577.8,1577.7,6.45715783]
[1674031549017,1.2009861,1577.8,1577.7,6.45715783]
[1674031549979,1.2009861,1577.8,1577.7,6.40212715]
[1674031550167,1.2009861,1577.8,1577.7,6.40012715]
[1674031550379,2.14454374,1577.8,1577.7,6.40212715]